fUST/lending_fUST_20240423
["ID","MTS","AMOUNT","RATE_DAILY","PERIOD"]
[323245754,1713840639011,-678.04287141,0.0002,2]
[323245755,1713840639023,-277.98874346,0.0002,2]
[323245756,1713840639036,-354.80715765,0.0002,2]
[323245757,1713840639046,-1442.68762834,0.0002,2]
[323245758,1713840639056,-154.82968734,0.0002,2]
[323245759,1713840639066,-241.51912105,0.0002,2]
[323245760,1713840639077,-5459.67159958,0.0002,2]
[323245761,1713840639088,-200.0,0.0002,2]
[323245762,1713840639098,-176.55424741,0.00020299,2]
[323245763,1713840639107,-587.0,0.00020764,2]
[323245764,1713840639116,-170.121986,0.00020929,2]
[323245765,1713840639126,-44444.0,0.00020987,3]
[323245766,1713840639252,-612.46689023,0.00021511,2]
[323245767,1713840639262,-823.0,0.0002284,2]
[323245768,1713840639272,-154.82968734,0.00023139,2]
[323245769,1713840639283,-150.83408251,0.00024093,7]
[323245770,1713840639295,-150.83408251,0.00024585,4]
[323245771,1713840639305,-73954.11470587,0.000246,2]
[323245772,1713840639314,-432.96792579,0.00024654,2]
[323245773,1713840639324,-305.02639978,0.00024655,2]
[323245774,1713840639335,-473.88611688,0.00024655,2]
[323245775,1713840639345,-500.0,0.00024657,2]
[323245776,1713840639354,-500.0,0.00024657,2]
[323245777,1713840639363,-500.0,0.00024657,2]
[323245778,1713840639372,-500.0,0.00024657,2]
[323245779,1713840639381,-759.77,0.00024657,2]
[323245780,1713840639391,-151.0,0.00024657,2]
[323245781,1713840639400,-500.0,0.00024657,2]
[323245782,1713840639409,-500.0,0.00024657,2]
[323245783,1713840639418,-708.73,0.00024657,2]
[323245784,1713840639428,-500.0,0.00024657,2]
[323245785,1713840639436,-500.0,0.00024657,2]
[323245786,1713840639447,-500.0,0.00024657,2]
[323245787,1713840639456,-500.0,0.00024657,2]
[323245788,1713840639465,-500.0,0.00024657,2]
[323245789,1713840639474,-500.0,0.00024657,2]
[323245790,1713840639483,-500.0,0.00024657,2]
[323245791,1713840639492,-500.0,0.00024657,2]
[323245792,1713840639501,-500.0,0.00024657,2]
[323245793,1713840639510,-500.0,0.00024657,2]
[323245794,1713840639519,-500.0,0.00024657,2]
[323245795,1713840639528,-500.0,0.00024657,2]
[323245796,1713840639538,-500.0,0.00024657,2]
[323245797,1713840639548,-500.0,0.00024657,2]
[323245798,1713840639557,-500.0,0.00024657,2]
[323245799,1713840639566,-500.0,0.00024657,2]
[323245800,1713840639576,-500.0,0.00024657,2]
[323245801,1713840639588,-500.0,0.00024657,2]
[323245802,1713840639597,-500.0,0.00024657,2]
[323245803,1713840639606,-500.0,0.00024657,2]
[323245804,1713840639616,-500.0,0.00024657,2]
[323245805,1713840639625,-500.0,0.00024657,2]
[323245806,1713840639634,-500.0,0.00024657,2]
[323245807,1713840639643,-500.0,0.00024657,2]
[323245808,1713840639652,-693.94,0.00024657,2]
[323245809,1713840639661,-500.0,0.00024657,2]
[323245810,1713840639670,-500.0,0.00024657,2]
[323245811,1713840639679,-200.99849974,0.00024657,2]
[323245812,1713840639688,-500.0,0.00024657,2]
[323245813,1713840639697,-500.0,0.00024657,2]
[323245814,1713840639706,-500.0,0.00024657,2]
[323245815,1713840639715,-500.0,0.00024657,2]
[323245816,1713840639724,-500.0,0.00024657,2]
[323245817,1713840639733,-605.52569592,0.00024657,2]
[323245818,1713840639742,-500.0,0.00024657,2]
[323245819,1713840639752,-1201.76,0.00024657,2]
[323245820,1713840639761,-500.0,0.00024657,2]
[323245821,1713840639771,-500.0,0.00024657,2]
[323245822,1713840639780,-500.0,0.00024657,2]
[323245823,1713840639789,-500.0,0.00024657,2]
[323245824,1713840639800,-500.0,0.00024657,2]
[323245825,1713840639809,-500.0,0.00024657,2]
[323245826,1713840639817,-500.0,0.00024657,2]
[323245827,1713840639826,-500.0,0.00024657,2]
[323245828,1713840639835,-500.0,0.00024657,2]
[323245829,1713840639845,-500.0,0.00024657,2]
[323245830,1713840639854,-500.0,0.00024657,2]
[323245831,1713840639864,-500.0,0.00024657,2]
[323245832,1713840639873,-500.0,0.00024657,2]
[323245833,1713840639882,-500.0,0.00024657,2]
[323245834,1713840639892,-500.0,0.00024657,2]
[323245835,1713840639902,-500.0,0.00024657,2]
[323245836,1713840639913,-945.06,0.00024657,2]
[323245837,1713840639922,-500.0,0.00024657,2]
[323245838,1713840639931,-500.0,0.00024657,2]
[323245839,1713840639942,-509.49191298,0.00024657,2]
[323245842,1713840640812,-9.03808702,0.00024657,2]
[323245843,1713840640821,-500.0,0.00024657,2]
[323245844,1713840640830,-1478.98,0.00024657,2]
[323245845,1713840640839,-500.0,0.00024657,2]
[323245846,1713840640848,-1050.3075902,0.00024657,2]
[323245852,1713840643918,-179.0524098,0.00024657,2]
[323245853,1713840643927,-339.66361532,0.00024657,2]
[323245854,1713840644077,-160.33638468,0.00024657,2]
[323245855,1713840644089,-171.74904147,0.00024657,2]
[323245856,1713840644099,-251.99923363,0.00024657,2]
[323245931,1713841837980,-181.85698219,0.00017696,2]
[323245933,1713841837990,-938.58206509,0.00017697,2]
[323245935,1713841837999,-701.94771615,0.00017697,2]
[323245937,1713841838009,-927.73627561,0.00017698,2]
[323245939,1713841838018,-1057.03497015,0.00017698,2]
[323245941,1713841838028,-272.57129579,0.00017699,2]
[323245943,1713841838037,-300.0,0.00017699,2]
[323245944,1713841838046,-12744.0,0.000177,2]
[323245945,1713841838055,-386.425085,0.00017727,2]
[323245947,1713841838065,-24900.0,0.00017849,2]
[323245949,1713841838075,-613.8729902,0.0001807,2]
[323245950,1713841838084,-658.875716,0.00018186,2]
[323245951,1713841838094,-603.3578092,0.000185,2]
[323245953,1713841838103,-196.7086001,0.00018504,2]
[323245954,1713841838113,-189.19295912,0.0001897,2]
[323245955,1713841838121,-170.121986,0.00019178,2]
[323245956,1713841838131,-309.60429101,0.00019211,2]
[323245957,1713841838139,-420.0,0.00019469,2]
[323245958,1713841838148,-176.55424741,0.000199,2]
[323245959,1713841838157,-176.55424741,0.000199,2]
[323245960,1713841838166,-14771.54291381,0.0002,2]
[323245961,1713841838282,-278.10869636,0.0002,2]
[323245962,1713841838293,-1684.01811317,0.0002,2]
[323245963,1713841838302,-319.72058798,0.0002,2]
[323245964,1713841838312,-154.82968734,0.0002,2]
[323245965,1713841838323,-678.04287141,0.0002,2]
[323245966,1713841838332,-200.0,0.0002,2]
[323245967,1713841838342,-1442.68762834,0.0002,2]
[323245968,1713841838351,-689.46452953,0.0002,2]
[323245969,1713841838360,-354.80715765,0.0002,2]
[323245970,1713841838370,-5459.67159958,0.0002,2]
[323245971,1713841838379,-587.0,0.00021416,2]
[323245972,1713841838388,-505.73861406,0.000219,2]
[323245973,1713841838397,-1133.69743973,0.000225,2]
[323245974,1713841838406,-620.47676591,0.00023193,2]
[323245975,1713841838415,-823.0,0.00023557,2]
[323245976,1713841838424,-620.0238383,0.00024353,2]
[323245977,1713841838433,-166.06774973,0.00024391,2]
[323245978,1713841838443,-169.83942023,0.00024391,2]
[323245979,1713841838454,-205.75232735,0.00024391,2]
[323245980,1713841838464,-409984.92201702,0.00024392,2]
[323245981,1713841838473,-105661.96555983,0.00024393,2]
[323245982,1713841838482,-1068.69629764,0.00024395,2]
[323245983,1713841838493,-44444.0,0.000244,3]
[323245984,1713841838503,-332.71686102,0.00024655,2]
[323245985,1713841838512,-263.63082416,0.00024655,2]
[323245986,1713841838521,-400.44915645,0.00024656,2]
[323245987,1713841838532,-24388.63526422,0.00024656,2]
[323245988,1713841838542,-154.82968734,0.00024657,2]
[323245989,1713841838551,-500.0,0.00024657,2]
[323245990,1713841838560,-151.0,0.00024657,2]
[323245991,1713841838571,-506.18,0.00024657,2]
[323245992,1713841838580,-500.0,0.00024657,2]
[323245993,1713841838590,-500.0,0.00024657,2]
[323245994,1713841838600,-500.0,0.00024657,2]
[323245995,1713841838609,-501.56559671,0.00024657,2]
[323245996,1713841838618,-384.25375918,0.00024657,2]
[323245997,1713841838627,-500.0,0.00024657,2]
[323245998,1713841838636,-500.0,0.00024657,2]
[323245999,1713841838646,-500.0,0.00024657,2]
[323246000,1713841838655,-500.0,0.00024657,2]
[323246001,1713841838664,-500.0,0.00024657,2]
[323246002,1713841838674,-500.0,0.00024657,2]
[323246003,1713841838683,-500.0,0.00024657,2]
[323246004,1713841838692,-621.45917348,0.00024657,2]
[323246005,1713841838701,-500.0,0.00024657,2]
[323246006,1713841838710,-500.0,0.00024657,2]
[323246007,1713841838720,-500.0,0.00024657,2]
[323246008,1713841838729,-502.36,0.00024657,2]
[323246009,1713841838738,-500.0,0.00024657,2]
[323246010,1713841838748,-500.0,0.00024657,2]
[323246011,1713841838758,-616.38,0.00024657,2]
[323246012,1713841838767,-500.0,0.00024657,2]
[323246013,1713841838777,-500.0,0.00024657,2]
[323246014,1713841838786,-500.0,0.00024657,2]
[323246015,1713841838795,-500.0,0.00024657,2]
[323246016,1713841838805,-150.16702039,0.00024657,2]
[323246017,1713841838814,-653.98,0.00024657,2]
[323246018,1713841838825,-500.0,0.00024657,2]
[323246019,1713841838835,-500.0,0.00024657,2]
[323246020,1713841838845,-500.0,0.00024657,2]
[323246021,1713841838854,-500.0,0.00024657,2]
[323246022,1713841838863,-213.31290659,0.00024657,2]
[323246023,1713841838874,-500.0,0.00024657,2]
[323246024,1713841838883,-500.0,0.00024657,2]
[323246025,1713841838892,-500.0,0.00024657,2]
[323246026,1713841838903,-500.0,0.00024657,2]
[323246027,1713841838912,-500.0,0.00024657,2]
[323246028,1713841838922,-500.0,0.00024657,2]
[323246029,1713841838932,-500.0,0.00024657,2]
[323246030,1713841838941,-963.08,0.00024657,2]
[323246031,1713841838951,-500.0,0.00024657,2]
[323246032,1713841838960,-500.0,0.00024657,2]
[323246033,1713841838969,-500.0,0.00024657,2]
[323246034,1713841838978,-500.0,0.00024657,2]
[323246035,1713841838988,-500.0,0.00024657,2]
[323246036,1713841838997,-500.0,0.00024657,2]
[323246037,1713841839006,-500.0,0.00024657,2]
[323246038,1713841839015,-502.12635121,0.00024657,2]
[323246039,1713841839024,-610.55,0.00024657,2]
[323246040,1713841839033,-504.43808088,0.00024657,2]
[323246041,1713841839042,-500.0,0.00024657,2]
[323246042,1713841839051,-500.0,0.00024657,2]
[323246043,1713841839060,-500.0,0.00024657,2]
[323246044,1713841839071,-611.83,0.00024657,2]
[323246045,1713841839082,-500.0,0.00024657,2]
[323246046,1713841839091,-500.0,0.00024657,2]
[323246047,1713841839099,-528.2725877,0.00024657,2]
[323246048,1713841839109,-500.0,0.00024657,2]
[323246049,1713841839118,-612.68014023,0.00024657,2]
[323246050,1713841839127,-575.89,0.00024657,2]
[323246051,1713841839136,-500.0,0.00024657,2]
[323246052,1713841839145,-500.0,0.00024657,2]
[323246053,1713841839154,-500.0,0.00024657,2]
[323246054,1713841839163,-612.07,0.00024657,2]
[323246055,1713841839172,-500.0,0.00024657,2]
[323246056,1713841839182,-507.72233272,0.00024657,2]
[323246057,1713841839191,-506.55524214,0.00024657,2]
[323246058,1713841839200,-500.0,0.00024657,2]
[323246059,1713841839209,-500.0,0.00024657,2]
[323246060,1713841839218,-500.0,0.00024657,2]
[323246061,1713841839227,-1782.62,0.00024657,2]
[323246062,1713841839236,-500.0,0.00024657,2]
[323246063,1713841839246,-504.08173457,0.00024657,2]
[323246064,1713841839255,-500.0,0.00024657,2]
[323246065,1713841839264,-500.0,0.00024657,2]
[323246066,1713841839275,-500.0,0.00024657,2]
[323246067,1713841839285,-500.0,0.00024657,2]
[323246068,1713841839295,-500.0,0.00024657,2]
[323246069,1713841839306,-500.0,0.00024657,2]
[323246070,1713841839316,-500.0,0.00024657,2]
[323246071,1713841839327,-1275.15,0.00024657,2]
[323246072,1713841839337,-503.61212778,0.00024657,2]
[323246073,1713841839346,-500.0,0.00024657,2]
[323246074,1713841839355,-500.0,0.00024657,2]
[323246075,1713841839365,-542.72,0.00024657,2]
[323246076,1713841839376,-500.0,0.00024657,2]
[323246077,1713841839386,-500.0,0.00024657,2]
[323246078,1713841839396,-2072.14,0.00024657,2]
[323246079,1713841839406,-500.0,0.00024657,2]
[323246080,1713841839416,-500.0,0.00024657,2]
[323246081,1713841839425,-500.0,0.00024657,2]
[323246082,1713841839435,-575.04,0.00024657,2]
[323246083,1713841839448,-500.0,0.00024657,2]
[323246084,1713841839457,-1828.71,0.00024657,2]
[323246085,1713841839467,-500.0,0.00024657,2]
[323246086,1713841839476,-500.0,0.00024657,2]
[323246087,1713841839487,-500.0,0.00024657,2]
[323246088,1713841839496,-500.0,0.00024657,2]
[323246089,1713841839504,-220.56944494,0.00024657,2]
[323246090,1713841839513,-500.0,0.00024657,2]
[323246091,1713841839522,-509.29167593,0.00024657,2]
[323246092,1713841839531,-1728.36,0.00024657,2]
[323246093,1713841839540,-500.0,0.00024657,2]
[323246094,1713841839549,-1401.83,0.00024657,2]
[323246095,1713841839558,-500.0,0.00024657,2]
[323246096,1713841839568,-500.0,0.00024657,2]
[323246097,1713841839578,-500.0,0.00024657,2]
[323246098,1713841839587,-2440.59,0.00024657,2]
[323246099,1713841839596,-448.65394139,0.00024657,2]
[323246100,1713841839605,-500.0,0.00024657,2]
[323246101,1713841839614,-500.0,0.00024657,2]
[323246102,1713841839624,-500.0,0.00024657,2]
[323246103,1713841839634,-500.0,0.00024657,2]
[323246104,1713841839643,-571.28,0.00024657,2]
[323246105,1713841839653,-3611.23,0.00024657,2]
[323246106,1713841839665,-500.0,0.00024657,2]
[323246107,1713841839674,-500.0,0.00024657,2]
[323246108,1713841839683,-1103.84,0.00024657,2]
[323246109,1713841839692,-500.76189568,0.00024657,2]
[323246110,1713841839701,-500.0,0.00024657,2]
[323246111,1713841839713,-1689.45,0.00024657,2]
[323246112,1713841839723,-500.0,0.00024657,2]
[323246113,1713841839731,-1113.11,0.00024657,2]
[323246114,1713841839740,-691.37,0.00024657,2]
[323246115,1713841839749,-500.0,0.00024657,2]
[323246116,1713841839758,-626.95,0.00024657,2]
[323246117,1713841839767,-1905.33,0.00024657,2]
[323246118,1713841839777,-500.0,0.00024657,2]
[323246119,1713841839786,-500.0,0.00024657,2]
[323246120,1713841839795,-500.0,0.00024657,2]
[323246121,1713841839804,-500.0,0.00024657,2]
[323246122,1713841839814,-3383.05,0.00024657,2]
[323246123,1713841839824,-586.91413713,0.00024657,2]
[323246124,1713841839833,-500.0,0.00024657,2]
[323246125,1713841839842,-500.0,0.00024657,2]
[323246126,1713841839851,-829.31,0.00024657,2]
[323246127,1713841839860,-446.44344308,0.00024657,2]
[323246128,1713841839869,-500.0,0.00024657,2]
[323246129,1713841839878,-500.0,0.00024657,2]
[323246130,1713841839887,-379.46646621,0.00024657,2]
[323246131,1713841839896,-500.0,0.00024657,2]
[323246132,1713841839905,-500.0,0.00024657,2]
[323246133,1713841839914,-593.45,0.00024657,2]
[323246134,1713841839923,-500.0,0.00024657,2]
[323246135,1713841839932,-531.58,0.00024657,2]
[323246136,1713841839941,-500.0,0.00024657,2]
[323246137,1713841839950,-500.59999705,0.00024657,2]
[323246138,1713841839959,-836.94,0.00024657,2]
[323246139,1713841839968,-500.0,0.00024657,2]
[323246140,1713841839977,-9457.66,0.00024657,2]
[323246141,1713841839986,-500.0,0.00024657,2]
[323246142,1713841839995,-400.3277968,0.00024658,2]
[323246143,1713841840004,-3248.75418739,0.000249,2]
[323246144,1713841840013,-3248.75418733,0.000249,2]
[323246145,1713841840022,-3248.75418733,0.000249,2]
[323246146,1713841840031,-3248.75418733,0.000249,2]
[323246147,1713841840040,-3248.75418733,0.000249,2]
[323246148,1713841840049,-3248.75418733,0.000249,2]
[323246149,1713841840059,-3248.75418733,0.000249,2]
[323246150,1713841840068,-3248.75418733,0.000249,2]
[323246151,1713841840079,-3248.75418733,0.000249,2]
[323246152,1713841840088,-3248.75418733,0.000249,2]
[323246153,1713841840097,-500.0,0.00024931,2]
[323246154,1713841840106,-500.0,0.00024931,2]
[323246155,1713841840115,-500.0,0.00024931,2]
[323246156,1713841840125,-506.18,0.00024931,2]
[323246157,1713841840134,-500.0,0.00024931,2]
[323246158,1713841840143,-500.0,0.00024931,2]
[323246159,1713841840151,-500.0,0.00024931,2]
[323246160,1713841840160,-500.0,0.00024931,2]
[323246161,1713841840169,-500.0,0.00024931,2]
[323246162,1713841840179,-500.0,0.00024931,2]
[323246163,1713841840188,-500.0,0.00024931,2]
[323246164,1713841840196,-500.0,0.00024931,2]
[323246165,1713841840205,-500.0,0.00024931,2]
[323246166,1713841840214,-500.0,0.00024931,2]
[323246167,1713841840223,-500.0,0.00024931,2]
[323246168,1713841840231,-502.36,0.00024931,2]
[323246169,1713841840240,-304.83845243,0.00024931,2]
[323246170,1713841840249,-500.0,0.00024931,2]
[323246171,1713841840258,-616.38,0.00024931,2]
[323246172,1713841840267,-500.0,0.00024931,2]
[323246173,1713841840276,-500.0,0.00024931,2]
[323246174,1713841840285,-500.0,0.00024931,2]
[323246175,1713841840294,-500.0,0.00024931,2]
[323246176,1713841840303,-653.98,0.00024931,2]
[323246177,1713841840311,-500.0,0.00024931,2]
[323246178,1713841840321,-500.0,0.00024931,2]
[323246179,1713841840332,-500.0,0.00024931,2]
[323246180,1713841840342,-500.0,0.00024931,2]
[323246181,1713841840350,-500.0,0.00024931,2]
[323246182,1713841840362,-517.7551783,0.00024931,2]
[323246183,1713841840371,-500.0,0.00024931,2]
[323246184,1713841840381,-500.0,0.00024931,2]
[323246185,1713841840391,-500.0,0.00024931,2]
[323246186,1713841840400,-500.0,0.00024931,2]
[323246187,1713841840410,-500.0,0.00024931,2]
[323246188,1713841840419,-963.08,0.00024931,2]
[323246189,1713841840428,-500.0,0.00024931,2]
[323246190,1713841840437,-500.0,0.00024931,2]
[323246191,1713841840446,-500.0,0.00024931,2]
[323246192,1713841840456,-500.0,0.00024931,2]
[323246193,1713841840465,-500.0,0.00024931,2]
[323246194,1713841840474,-500.0,0.00024931,2]
[323246195,1713841840483,-610.55,0.00024931,2]
[323246196,1713841840492,-503.90897432,0.00024931,2]
[323246197,1713841840501,-500.0,0.00024931,2]
[323246198,1713841840510,-500.0,0.00024931,2]
[323246199,1713841840519,-611.83,0.00024931,2]
[323246200,1713841840528,-500.0,0.00024931,2]
[323246201,1713841840537,-500.0,0.00024931,2]
[323246202,1713841840546,-503.3955291,0.00024931,2]
[323246203,1713841840555,-575.89,0.00024931,2]
[323246204,1713841840564,-206.59761713,0.00024931,2]
[323246205,1713841840574,-500.0,0.00024931,2]
[323246206,1713841840583,-612.07,0.00024931,2]
[323246207,1713841840592,-500.0,0.00024931,2]
[323246208,1713841840601,-500.0,0.00024931,2]
[323246209,1713841840610,-500.0,0.00024931,2]
[323246210,1713841840619,-500.0,0.00024931,2]
[323246211,1713841840628,-1782.62,0.00024931,2]
[323246212,1713841840638,-500.0,0.00024931,2]
[323246213,1713841840647,-500.0,0.00024931,2]
[323246214,1713841840656,-500.0,0.00024931,2]
[323246215,1713841840665,-505.26976822,0.00024931,2]
[323246216,1713841840674,-589.51058639,0.00024931,2]
[323246217,1713841840683,-500.0,0.00024931,2]
[323246218,1713841840693,-500.0,0.00024931,2]
[323246219,1713841840702,-500.0,0.00024931,2]
[323246220,1713841840711,-1275.15,0.00024931,2]
[323246221,1713841840720,-500.0,0.00024931,2]
[323246222,1713841840729,-500.0,0.00024931,2]
[323246223,1713841840738,-542.72,0.00024931,2]
[323246224,1713841840747,-610.96252376,0.00024931,2]
[323246225,1713841840758,-500.0,0.00024931,2]
[323246226,1713841840767,-2072.14,0.00024931,2]
[323246227,1713841840776,-500.0,0.00024931,2]
[323246228,1713841840785,-500.0,0.00024931,2]
[323246229,1713841840794,-575.04,0.00024931,2]
[323246230,1713841840803,-500.0,0.00024931,2]
[323246231,1713841840812,-1828.71,0.00024931,2]
[323246232,1713841840823,-500.0,0.00024931,2]
[323246233,1713841840832,-333.65746836,0.00024931,2]
[323246234,1713841840841,-500.0,0.00024931,2]
[323246235,1713841840942,-505.6239347,0.00024931,2]
[323246236,1713841840952,-500.0,0.00024931,2]
[323246237,1713841840962,-1728.36,0.00024931,2]
[323246238,1713841840971,-500.0,0.00024931,2]
[323246239,1713841840980,-1401.83,0.00024931,2]
[323246240,1713841840989,-461.97258799,0.00024931,2]
[323246241,1713841840998,-500.0,0.00024931,2]
[323246242,1713841841007,-500.0,0.00024931,2]
[323246243,1713841841017,-2440.59,0.00024931,2]
[323246244,1713841841026,-500.0,0.00024931,2]
[323246245,1713841841035,-500.0,0.00024931,2]
[323246246,1713841841044,-500.0,0.00024931,2]
[323246247,1713841841053,-155.40517086,0.00024931,2]
[323246248,1713841841062,-571.28,0.00024931,2]
[323246249,1713841841071,-500.0,0.00024931,2]
[323246250,1713841841081,-3611.23,0.00024931,2]
[323246251,1713841841091,-402.55769552,0.00024931,2]
[323246259,1713841841212,-97.44230448,0.00024931,2]
[323246261,1713841841222,-1103.84,0.00024931,2]
[323246263,1713841841232,-500.0,0.00024931,2]
[323246264,1713841841242,-1497.13459563,0.00024931,2]
[323246337,1713841843145,-187.28344922,0.00017695,2]
[323246339,1713841843155,-2099.47208497,0.00017696,2]
[323246341,1713841843164,-477.89914657,0.00022557,2]
[323246343,1713841843173,-201.12349075,0.00024391,2]
[323246345,1713841843183,-1093.81756696,0.00024656,2]
[323246347,1713841843192,-283.61689128,0.00024656,2]
[323246349,1713841843202,-500.0,0.00024657,2]
[323246351,1713841843212,-500.0,0.00024657,2]
[323246353,1713841843221,-500.0,0.00024657,2]
[323246355,1713841843229,-500.0,0.00024657,2]
[323246357,1713841843238,-192.31540437,0.00024931,2]
[323246359,1713841843247,-211.06306145,0.00024931,2]
[323246361,1713841843256,-1113.11,0.00024931,2]
[323246363,1713841843265,-691.37,0.00024931,2]
[323246365,1713841843274,-500.0,0.00024931,2]
[323246367,1713841843283,-626.95,0.00024931,2]
[323246369,1713841843292,-1905.33,0.00024931,2]
[323246371,1713841843301,-503.60241495,0.00024931,2]
[323246373,1713841843311,-503.43561982,0.00024931,2]
[323246375,1713841843321,-500.0,0.00024931,2]
[323246377,1713841843330,-500.0,0.00024931,2]
[323246379,1713841843339,-1149.74970476,0.00024931,2]
[323246463,1713843032186,-154.82968734,0.00016254,2]
[323246464,1713843032196,-181.85698219,0.00016254,2]
[323246465,1713843032205,-938.58206509,0.00016255,2]
[323246466,1713843032214,-2099.47208497,0.00016255,2]
[323246467,1713843032224,-526.34381075,0.00016255,2]
[323246468,1713843032233,-1202.20163216,0.00016256,2]
[323246469,1713843032242,-43.20053774,0.00016256,2]
[323246505,1713843038174,-1878.1368462,0.00016253,2]
[323246508,1713843038187,-884.53573787,0.00016256,2]
[323246510,1713843038198,-329.437858,0.00016257,2]
[323246512,1713843038208,-272.57129579,0.000165,2]
[323246514,1713843038220,-300.0,0.00017196,2]
[323246517,1713843038232,-300.0,0.00017196,2]
[323246519,1713843038244,-513.35127972,0.000172,2]
[323246521,1713843038255,-72560.09039098,0.00017302,2]
[323246524,1713843038266,-334808.0684555,0.00017303,2]
[323246759,1713843040236,-262.02855198,0.00017303,2]
[323246970,1713843043422,-1830.51746391,0.00017303,2]
[323246972,1713843043434,-73084.30754563,0.00017303,2]
[323246974,1713843043443,-398.93353455,0.00017316,2]
[323246976,1713843043453,-15085.4728693,0.00017318,2]
[323246978,1713843043462,-470.82588717,0.00017845,2]
[323246980,1713843043471,-2907.57785318,0.00017846,2]
[323246982,1713843043480,-603.3578092,0.000185,2]
[323246984,1713843043489,-420.0,0.00018778,2]
[323246986,1713843043498,-420.0,0.00018915,2]
[323246988,1713843043507,-337.05207981,0.0001897,2]
[323246990,1713843043517,-168.363873,0.00019178,2]
[323246992,1713843043526,-155.20105733,0.00019898,2]
[323246994,1713843043535,-459.645754,0.00019899,2]
[323246996,1713843043544,-6133.42223202,0.000199,2]
[323247263,1713843046316,-3938.24855266,0.000199,2]
[323247265,1713843046327,-735.7022111,0.000199,2]
[323247791,1713844107335,-1878.1368462,0.00017527,2]
[323247792,1713844107357,-474.79230604,0.00017528,2]
[323247793,1713844107379,-564.51895848,0.00017529,2]
[323247794,1713844107401,-938.58206509,0.0001753,2]
[323247795,1713844107423,-181.85698219,0.0001753,2]
[323247796,1713844107444,-927.73627561,0.00017531,2]
[323247797,1713844107466,-164.718929,0.00017539,2]
[323247798,1713844107488,-603.3578092,0.000185,2]
[323247799,1713844107511,-300.0,0.00018784,2]
[323247800,1713844107532,-300.0,0.00018784,2]
[323247801,1713844107555,-31177.29467554,0.00018785,2]
[323247802,1713844107577,-183.46066625,0.00018786,2]
[323247803,1713844107599,-188.81822926,0.00018791,2]
[323247804,1713844107621,-696.49857763,0.000189,2]
[323247805,1713844107643,-170.121986,0.00019178,2]
[323247806,1713844107664,-7866.94121737,0.00019896,2]
[323247807,1713844107686,-673.55445774,0.00019896,2]
[323247808,1713844107709,-79246.47416987,0.00019898,2]
[323247809,1713844107731,-155.29157044,0.00019898,2]
[323247810,1713844107753,-273307.84427809,0.00019898,2]
[323247841,1713844232353,-210.08144936,0.00017436,2]
[323247842,1713844232362,-324.52092864,0.00018898,2]
[323247875,1713844238298,-614.06113645,0.00018898,2]
[323247876,1713844238308,-181.85698219,0.00018899,2]
[323247877,1713844238317,-464.33238508,0.000189,2]
[323247878,1713844238326,-552.75875497,0.00018902,2]
[323247879,1713844238335,-168.363873,0.00019178,2]
[323247880,1713844238344,-309.06067658,0.00019897,2]
[323247881,1713844238353,-303.9075055,0.00019897,2]
[323247882,1713844238362,-352.28023898,0.00019897,2]
[323247883,1713844238371,-479.22725919,0.00019897,2]
[323247884,1713844238381,-300.0,0.00019897,2]
[323247885,1713844238390,-300.0,0.00019897,2]